Cogmind - Beta 15 @@@ ROGUE MODE // 2025.08.14 @ 18:22:04 Player: spider wisdom Result: Self-destructed Performance ------------- Evolutions (2) 1000 Regions Visited (4) 800 Robots Destroyed (10) 50 Value Destroyed (237) 237 Prototype IDs (2) 40 Alien Tech Used (0) 0 Bonus (0) 0 TOTAL SCORE: 2127 Bonus ------- None Cogmind --------- Core Integrity 61/550 Matter 194/300 Energy 99/100 System Corruption 0% Temperature Cool (0) Movement Core (50) Location -8/Materials Parts ------- > --- POWER (2) -------- (None) > --- PROPULSION (3) --- (None) > --- UTILITY (3) ------ (None) > --- WEAPON (3) ------- (None) > --- INVENTORY (5) ---- (None) Peak State ------------ > --- POWER ------------ Improved Ion Engine > --- PROPULSION ------- (None) > --- UTILITY ---------- Advanced ECM Suite > --- WEAPON ----------- Spear Spear > --- INVENTORY -------- Autogun Rocket Launcher [Rating: 14] Favorites ----------- Power Improved Ion Engine Engine Improved Ion Engine Propulsion VTOL Module Treads Light Treads Leg Aluminum Leg Flight Unit VTOL Module Utility Sensor Array Device Sensor Array Weapon Autogun Energy Gun Small Laser Energy Cannon Heavy Particle Cannon Ballistic Gun Autogun Launcher Rocket Launcher Piercing Weapon Spear Special Melee Weapon Datajack Build | -11 -10 -9 -9 -8 ------- Run | Yrd Mat Mat Min Mat Slots Evolved 4 | . . 2 . 2 Power 1 | . . . . 1 Propulsion 1 | . . 1 . . Utility 1 | . . 1 . . Weapon 1 | . . . . 1 Parts Attached 31 | 4 6 11 . 10 Power 7 | 1 . 4 . 2 Engine 7 | 1 . 4 . 2 Core . | . . . . . Reactor . | . . . . . Propulsion 9 | 2 4 2 . 1 Treads 2 | 2 . . . . Leg 1 | . . . . 1 Wheel . | . . . . . Hover . | . . . . . Flight 6 | . 4 2 . . Utility 4 | . 1 2 . 1 Device 4 | . 1 2 . 1 Storage . | . . . . . Processor . | . . . . . Hackware . | . . . . . Protection . | . . . . . Artifact . | . . . . . Weapon 11 | 1 1 3 . 6 Energy Gun 3 | 1 . 1 . 1 Energy Cannon 1 | . . . . 1 Ballistic Gun 3 | . 1 1 . 1 Ballistic Cannon . | . . . . . Launcher 1 | . . . . 1 Special Weapon . | . . . . . Impact Weapon . | . . . . . Slashing Weapon . | . . . . . Piercing Weapon 2 | . . . . 2 Special Melee Weapon 1 | . . 1 . . Unidentified Prototypes 2 | . . . . 2 Parts Lost 21 | . . 13 . 8 Power 6 | . . 4 . 2 Propulsion 5 | . . 4 . 1 Utility 2 | . . 2 . . Weapon 8 | . . 3 . 5 Highest Loss Streak 7 | . . 7 . 3 To Critical Strikes . | . . . . . Average Backups 1 | 1 2 1 . 1 Power . | . 1 . . . Propulsion . | . 1 . . . Utility . | . . . . . Weapon . | 1 . . . 1 Tool/Special . | . . . . . Unused Backups 2 | . 2 . . . Power . | . . . . . Propulsion 2 | . 2 . . . Utility . | . . . . . Weapon . | . . . . . Tool/Special . | . . . . . Average Slot Usage (%) 32 | . 71 45 22 18 Engine 8 | . 14 7 11 6 Treads 1 | . 11 . . . Flight 5 | . 16 15 . . Device 3 | . 4 11 . . Energy Gun 3 | . 14 5 . 1 Energy Cannon 1 | . . . . 4 Ballistic Gun 5 | . 10 3 11 1 Piercing Weapon 1 | . . . . 2 Peak Build Rating 14 | 4 8 12 4 14 Average Rating 5 | 3 6 6 4 5 On Entrance 3 | . 4 7 4 4 Naked Turns 36 | . . . . 36 Heaviest Build 16 | 4 6 10 10 16 Greatest Support 40 | 40 40 12 3 10 Greatest Overweight (x) 5 | . . 3 3 5 Average Overweight (x) . | . . . 3 1 Largest Inventory Capacity 5 | 5 5 5 5 5 Average Capacity 5 | 5 5 5 5 5 Most Carried 5 | 3 5 4 1 4 Average Carried 1 | 1 2 1 . 1 Final Capacity 5 | 5 5 5 5 5 Final Carried 4 | 2 4 1 1 . Class Distribution -------------------- 82% | Mutant 17% | Sprinter Dominant Class ---------------- Sprinter | -10/Materials Sprinter | -9/Materials Mutant | -9/Mines Mutant | -8/Materials Resources | -11 -10 -9 -9 -8 ----------- Run | Yrd Mat Mat Min Mat Matter Collected 467 | 217 92 72 . 86 Remotely . | . . . . . Salvage Created 213 | . 31 114 . 68 Parts 17 | . 4 8 . 5 Haulers Intercepted . | . . . . . Recyclers Shooed . | . . . . . Parts Field Recycled . | . . . . . Retrieved Matter . | . . . . . Parts Self-Destructed . | . . . . . Prevented . | . . . . . Kills | -11 -10 -9 -9 -8 ------- Run | Yrd Mat Mat Min Mat Combat Hostiles Destroyed 9 | . 2 5 . 2 Guns 7 | . 2 5 . . Cannons 2 | . . . . 2 Classes Destroyed 4 | . 1 2 . 1 Worker 1 | . . . . 1 Swarmer 5 | . 2 3 . . Grunt 3 | . . 1 . 2 Sentry 1 | . . 1 . . Best Kill Streak 3 | . 2 3 . 3 Combat Bots Only 3 | . 2 3 . 2 Max Kills in Single Turn 1 | . 1 1 . 1 Gunslinging . | . . . . . Exploded . | . . . . . Melee . | . . . . . Uniques/NPCs Destroyed . | . . . . . Combat | -11 -10 -9 -9 -8 -------- Run | Yrd Mat Mat Min Mat Hostile Shots Fired 247 | . 26 137 . 84 Missed 77 | . 6 56 . 15 Hits 170 | . 20 81 . 69 Projectile 170 | . 20 81 . 69 AOE 1 | . . 1 . . Critical Strikes 1 | . . . . 1 Damage Taken 2324 | . 190 978 . 1156 Core 908 | . 30 389 . 489 Absorbed by Shields . | . . . . . Core Remaining (%) 63 | 100 88 . 2 . Volleys Fired 57 | . 9 27 . 21 Largest 2 | . 2 1 . 2 Hottest 108 | . 60 56 . 108 Shots Fired 74 | . 18 27 . 29 Gun 61 | . 18 27 . 16 Cannon 9 | . . . . 9 Launcher 4 | . . . . 4 Special . | . . . . . Kinetic 25 | . 9 9 . 7 Thermal 45 | . 9 18 . 18 Explosive 4 | . . . . 4 Electromagnetic . | . . . . . Robot Hit Streak 8 | . 4 8 . 5 Robot Miss Streak 7 | . 7 2 . 5 Penetration Max . | . . . . . Secondary Targets . | . . . . . Shots Hit Robots 45 | . 8 23 . 14 Core Hits 24 | . 3 8 . 13 Critical Kills . | . . . . . Critical Parts Destroyed . | . . . . . Critical Strikes 2 | . . . . 2 Burn 2 | . . . . 2 Melee Attacks 4 | . . 3 . 1 Impact . | . . . . . Slashing . | . . . . . Piercing 1 | . . . . 1 Sneak Attacks . | . . . . . Combat Hostiles . | . . . . . Follow-up Attacks . | . . . . . Damage Inflicted 984 | . 74 272 . 638 Guns 503 | . 74 272 . 157 Cannons 150 | . . . . 150 Explosions 289 | . . . . 289 Melee 33 | . . . . 33 Ramming 9 | . . . . 9 Kinetic 204 | . 42 117 . 45 Thermal 449 | . 32 155 . 262 Explosive 289 | . . . . 289 Electromagnetic . | . . . . . Impact . | . . . . . Slashing . | . . . . . Piercing 33 | . . . . 33 Highest Corruption . | . . . . . Average Corruption . | . . . . . Corruption Purged . | . . . . . Corruption Blocked . | . . . . . Overload Shots . | . . . . . Overflow Damage . | . . . . . Projectiles . | . . . . . Explosions . | . . . . . Melee . | . . . . . Knockbacks . | . . . . . Impact . | . . . . . Kinetic . | . . . . . Secondary . | . . . . . Self-Inflicted Damage 4 | . . . . 4 Shots . | . . . . . Rammed 3 | . . . . 3 Targets Rammed 3 | . . . . 3 Kicked . | . . . . . Crushed . | . . . . . Highest Temperature 392 | . 60 76 . 392 Average Temperature 105 | . 34 23 . 163 Received Heat Transfer 894 | . . 255 . 639 Siege Activations . | . . . . . Martial Activations . | . . . . . Shielding Activations . | . . . . . Robots Disrupted . | . . . . . Combat Hostiles . | . . . . . Robots Corrupted . | . . . . . Combat Hostiles . | . . . . . Parts Fried . | . . . . . Impact Corruptions . | . . . . . Robots Melted . | . . . . . Combat Hostiles . | . . . . . Parts Melted . | . . . . . Heat Transferred 1040 | . 75 373 . 592 Parts Sabotaged . | . . . . . Parts Stolen . | . . . . . Parts Stripped . | . . . . . Power Chain Reactions . | . . . . . Alert | -11 -10 -9 -9 -8 ------- Run | Yrd Mat Mat Min Mat Maximum Alert Level . | . . . . . Low Security (%) 100 | 100 100 100 100 100 Level 1 . | . . . . . Level 2 . | . . . . . Level 3 . | . . . . . Level 4 . | . . . . . Level 5 . | . . . . . High Security . | . . . . . Max Security . | . . . . . Peak Influence 170 | . 40 170 42 71 Initial 42 | . . . 42 . Average 20 | . 9 76 7 6 Influence Increases 494 | . 40 285 . 169 Destroy 0b10 Robot/C 180 | . 40 100 . 40 Destroy 0b10 Robot/NC 5 | . . . . 5 Destroy Leader 30 | . . 20 . 10 Disable Machine 15 | . . . . 15 Destroy Structure 24 | . . . . 24 Partial Spotted 15 | . . 15 . . Lose Combat Pursuer 225 | . . 150 . 75 Influence Decreases 464 | . 40 175 110 139 Entered New Map 68 | . . . 68 . Time Decay 259 | . 40 95 42 82 Lost Part 137 | . . 80 . 57 Squads Dispatched 2 | . . 1 . 1 Investigation . | . . . . . Extermination . | . . . . . Reinforcement 2 | . . 1 . 1 Assault . | . . . . . Garrison . | . . . . . Intercept . | . . . . . Searches Triggered . | . . . . . Construction Impeded 1 | . . . . 1 Haulers Reinforced . | . . . . . Active Scanning Responses . | . . . . . Cargo Convoy Interrupts . | . . . . . Stealth | -11 -10 -9 -9 -8 --------- Run | Yrd Mat Mat Min Mat Distress Signals 4 | . . 2 . 2 Communications Jammed . | . . . . . Distress Signals . | . . . . . Times Spotted 49 | . 4 26 4 15 Peak Tracking Total 14 | . 3 14 . 7 Tactical Retreats 7 | . . 3 . 4 Traps | -11 -10 -9 -9 -8 ------- Run | Yrd Mat Mat Min Mat Traps Triggered 1 | . 1 . . . Indirectly . | . . . . . Trap Hack Attempts . | . . . . . Triggered . | . . . . . Disarmed . | . . . . . Reprogrammed . | . . . . . Reused . | . . . . . Traps Extracted . | . . . . . Installed . | . . . . . Triggered . | . . . . . Machines | -11 -10 -9 -9 -8 ---------- Run | Yrd Mat Mat Min Mat Machines Disabled 1 | . . . . 1 Max in Single Turn 1 | . . . . 1 Machines Repaired . | . . . . . Machines Dismantled . | . . . . . Machines Sabotaged . | . . . . . Overloaded Fab Kills . | . . . . . Hacking | -11 -10 -9 -9 -8 --------- Run | Yrd Mat Mat Min Mat Machines Accessed 1 | . . 1 . . Terminals 1 | . . 1 . . Fabricators . | . . . . . Repair Stations . | . . . . . Recycling Units . | . . . . . Scanalyzers . | . . . . . Garrison Access . | . . . . . Total Hacks 2 | . . 2 . . Successful . | . . . . . Failed 2 | . . 2 . . Catastrophic 1 | . . 1 . . Database Lockouts . | . . . . . Manual 2 | . . 2 . . Terminals 2 | . . 2 . . Fabricators . | . . . . . Repair Stations . | . . . . . Recycling Units . | . . . . . Scanalyzers . | . . . . . Garrison Access . | . . . . . Terminal Hacks . | . . . . . Fabricator Hacks . | . . . . . Repair Station Hacks . | . . . . . Recycling Unit Hacks . | . . . . . Scanalyzer . | . . . . . Garrison Access Hacks . | . . . . . Unauthorized Hacks . | . . . . . Terminals . | . . . . . Fabricators . | . . . . . Repair Stations . | . . . . . Recycling Units . | . . . . . Scanalyzers . | . . . . . Garrison Access . | . . . . . Data Cores Recovered . | . . . . . Used . | . . . . . Hacking Detections 1 | . . 1 . . Full Trace Events 1 | . . 1 . . Feedback Events . | . . . . . Feedback Blocked . | . . . . . Robot Schematics Acquired . | . . . . . Robots Built . | . . . . . Authchips . | . . . . . Time . | . . . . . Total Robot Build Rating . | . . . . . Part Schematics Acquired . | . . . . . Parts Built . | . . . . . Authchips . | . . . . . Time . | . . . . . Total Part Build Rating . | . . . . . Parts Repaired . | . . . . . Time . | . . . . . Parts Recycled . | . . . . . Recycled Matter . | . . . . . Retrieved Matter . | . . . . . Retrieved Components . | . . . . . Parts Scanalyzed . | . . . . . Part Schematics Acquired . | . . . . . Parts Damaged . | . . . . . Bothacking | -11 -10 -9 -9 -8 ------------ Run | Yrd Mat Mat Min Mat Used RIF Installer . | . . . . . Robots Hacked 1 | . . 1 . . Non-combat . | . . . . . Combat 1 | . . 1 . . Robot Hacks Applied 1 | . . 1 . . parse_system 1 | . . 1 . . Relay Couplers Released . | . . . . . Fabnet Peak Effective % . | . . . . . Robots Rewired . | . . . . . Allies Hacked . | . . . . . Hacks Repelled . | . . . . . Allies | -11 -10 -9 -9 -8 -------- Run | Yrd Mat Mat Min Mat Total Allies . | . . . . . Largest Group . | . . . . . Highest-Rated Group . | . . . . . Highest-Rated Ally . | . . . . . Total Orders . | . . . . . Ally Attacks . | . . . . . Total Damage . | . . . . . Kills . | . . . . . Allies Corrupted . | . . . . . Allies Melted . | . . . . . Intel | -11 -10 -9 -9 -8 ------- Run | Yrd Mat Mat Min Mat Active Infowar (turns) 208 | . 65 140 . 3 Sensors 205 | . 65 140 . . ECM 50 | . . 47 . 3 Robot Analysis Total . | . . . . . Derelict Logs Recovered 1 | . . . 1 . Drone Launches . | . . . . . Drone Recoveries . | . . . . . Exploration | -11 -10 -9 -9 -8 ------------- Run | Yrd Mat Mat Min Mat Turns Passed 1374 | 73 182 270 286 563 Spaces Moved 1132 | 47 317 343 143 282 Core 428 | 10 . 60 143 215 Treads 62 | 37 25 . . . Legs 67 | . . . . 67 Wheels . | . . . . . Hover . | . . . . . Flight 575 | . 292 283 . . Fastest Speed 29 | 50 32 29 200 50 Average Speed 98 | 136 42 47 200 164 Slowest Speed 300 | 160 160 200 200 300 Overloaded Moves . | . . . . . Propulsion Burnouts . | . . . . . Robots Hopped 6 | . 1 5 . . Potential Cave-ins . | . . . . . Cave-ins Triggered . | . . . . . Exploration Rate (%) 25 | 3 45 27 33 21 Regions Visited 4 Branch Regions 1 Pre-discovered Areas . | . . . . . Known Exits Taken . | . . . . . Unknown Exits Taken 4 | 1 1 1 1 . Scrap Searched . | . . . . . Spaces Dug . | . . . . . Terrain Destroyed 22 | . . . . 22 Melee . | . . . . . Projectile 3 | . . . . 3 AOE 19 | . . . . 19 Terrain Rammed . | . . . . . Walls Destroyed . | . . . . . Machines Disabled . | . . . . . Actions | -11 -10 -9 -9 -8 --------- Run | Yrd Mat Mat Min Mat Total 1321 | 56 348 419 144 354 Wait 46 | . . 31 . 15 Move 1117 | 46 314 333 142 282 Hop 5 | . 1 4 . . Pick Up 33 | 6 10 7 1 9 Fast Attach . | . . . . . Attach 28 | 4 2 12 . 10 Detach 7 | . 1 2 . 4 Swap 9 | . 4 . . 5 Drop 12 | . 7 . 1 4 Fire 57 | . 9 27 . 21 Melee 4 | . . 3 . 1 Ram 3 | . . . . 3 Kick . | . . . . . Crush . | . . . . . Escape Stasis . | . . . . . Rewire . | . . . . . Trap . | . . . . . Miscellaneous . | . . . . . Route ------- -11/Scrapyard -10/Materials -9/Materials (discovered 2 exits: [*Min x2]) -9/Mines -8/Materials History --------- Turn | Location | Event 6 | -11/Scrapyard | Discovered new exit (range 14) 74 | -11/Scrapyard | Entered Materials 75 | -10/Materials | Met a group of wandering Federalists 173 | -10/Materials | Discovered new exit (range 4) 256 | -10/Materials | Entered another Materials area 256 | -9/Materials | Evolved 2 slots: Propulsion x1, Utility x1 269 | -9/Materials | Discovered new exit (range 14) 385 | -9/Materials | Lost 7 parts (2p2n1u2w) 390 | -9/Materials | Core integrity fell below 50% 419 | -9/Materials | Core integrity fell below 20% 449 | -9/Materials | Lost 5 parts (1p2n1u1w) 516 | -9/Materials | Discovered new exit (range 6) 526 | -9/Materials | Entered Mines 542 | -9/Mines | Received a Rocket Launcher from a helpful Derelict 556 | -9/Mines | Discovered new exit (range 15) 620 | -9/Mines | Learned Materials terminal intel 699 | -9/Mines | Build established: Mutant 799 | -9/Mines | Assembled infested the area 804 | -9/Mines | Assisted by a Guerilla fighting off Assembled 812 | -9/Mines | Entered Materials 812 | -8/Materials | Evolved 2 slots: Power x1, Weapon x1 813 | -8/Materials | Loaded intel: 12 terminal locations 1225 | -8/Materials | Lost 3 parts (1p2w) 1340 | -8/Materials | Core integrity fell below 50% 1349 | -8/Materials | Core integrity fell below 20% 1374 | -8/Materials | Lost 3 parts (1n2w) 1375 | -8/Materials | Self-destructed Last Messages --------------- 01290_ Acquired 1 matter. 01291_ U-05 Engineer lays Concrete. 01292_ Acquired 35 matter. 01293_ The unstable cave ceiling collapses. 01294_ U-05 Engineer lays Concrete. 01297_ W-25 Informer sends out distress signal. 01298_ U-05 Engineer builds a Wall. 01332_ Acquired Prototype Ballistic Gun. 01333_ Identified Imp. Assault Rifle. 01333_ Faulty integration triggers heat surge (+213). 01334_ G-50 Soldier suffers critical hit (Burn). 01334_ Aluminum Leg destroyed. 01339_ G-47 Trooper destroyed. 01340_ G-47 Trooper suffers critical hit (Burn). 01342_ Hvy. Laser destroyed. 01343_ Faulty Imp. Assault Rifle destroyed. 01345_ Slammed into G-47 Trooper. 01352_ M-13 Machinist repairs G-50 Soldier. 01357_ K-01 Serf cleans the Terminal. 01358_ K-01 Serf cleans the Integration Channel. Map ----- +----------------------------------------------------+ | ?????????????????????????????????????????????????? | | ?????????????????????????????????????????????????? | | ?????????????????????????????????????????????????? | | ?????"""?????????????????????????????????????????? | | ?????"T"?????????????????????????????????????????? | | ?????????????????????????????????????????????????? | | ?????????????????????????????????????????????????? | | ?????????????????????????????????????????????????? | | ?????????????????????????????????????????????????? | | ?????????????????????????????????????????????????? | | ?????????????????????????????????????????????????? | | ??????????????????????????????????????""?????????? | | ????????" ??????????????????????????T"?????????? | | ????????" ??????????????????????????""?????????? | | ???? ??"" !?????????????????????????????????????? | | ??? ?" ?########????????????????????????????? | | ???? "" ?# #????????????????????????????? | | ????? " ?# """ !#????????????????????????????? | | ?????? ?# "R" #????????????????????????????? | | ????? ## " " #?????????????????????""?????? | | ??# ? " ## #?????????????????????T"?????? | | ??# """ "?? !??????????????????????""?????? | | ??+ """ T???#+#??????????????????????????????? | | ??# """ "???# #########??????????????????????? | | ?## "" ##### # #??????????????????????? | | ?# """ # @#??????????????????????? | | ?# "" kg gg/ #??????????????????????? | | ?+ "" ################?????????????????????? | | ?# " #????# #?????????????????????? | | ?# #????# """ #?????????????????????? | | ?### ###### """"" #?????????????????????? | | ???# #= """"" #?????????????????????? | | ???# # """"" #?????????????????????? | | ???+ / """ #?????????????????????? | | ???# # #?????????????????????? | | ???# # %= #?????????????????????? | | ???# #"T"# ###### # = #?????????????????????? | | ???# #"""# ????##+##########?????????""??????????? | | ???# #####+##### #????????????T"??????????? | | ???? # # """ #????????????""??????????? | | ???? # +! """ #????????????????????????? | | ???# # # """ #????????????????????????? | | ???# # # #????????????????????????? | | ???# # # """ #????????????????????????? | | #??# # # """ #????????????????????????? | | ?# # # """ #????????????????????????? | | ?# # # #????????????????????????? | | # ######/########/#####???????????????????????? | | # #"##??????????????????????? | | + !!#??????????????????????? | +----------------------------------------------------+ Best States ------------- Heat Dissipation 31 Energy Generation 18 Energy Capacity 265 Matter Stores 300 Matter Capacity 300 Sight Range 16 Robot Scan Range 14 Terrain Scan Density 10 ECM Strength 2 Evasion (%) 64 Recoil Reduction 2 Item Schematics ----------------- None Robot Schematics ------------------ None Fabricated ------------ Nothing Repaired ---------- Nothing Alien Tech Used ----------------- None Achievements -------------- Close Call I Survived The Infestation Challenges ------------ None Game ------ Seed ZionitePhaseLegs Manual? 0 Play Time 00:22:28 Cumulative 7.2 hours Start 2025.08.14 @ 17:52:19 End 2025.08.14 @ 18:22:04 Sessions 1 Manual Loads 0 Difficulty Rogue Special Mode None Game No. 24 Rogue 18 Adventurer 6 Explorer 0 Win Type - Total 0 Types 0/0/0/0/0/0/0/0/0/0 Lore% 4 Gallery% 14 Achievement% 13 Wizard Run 0 Options --------- Layout 0 ASCII 0 Keyboard 1 Movement Numpad Keybinds 0 Fullscreen 1 Font 24/Proggy Map View 76x50 Zoom Use 0% Tactical HUD 1 Map Filters NONE Filters NONE Steam 1 RUN: ccc15d4f-3286-45d7-b074-6f4caa65e284